[Event "Titled Tuesday Blitz November 22 Late 2022"]
[White "Roque Sola, Jose Luis"]
[Black "Prydun, Andriy"]
[WhiteFideId "5120390"]
[BlackFideId "14145898"]
[WhiteElo "2117"]
[BlackElo "2163"]
[Result "1/2-1/2"]
[Round "03"]
[TimeControl "180+1"]
[Date "2022.11.23"]
[WhiteClock "0:00:07"]
[BlackClock "0:00:11"]

1. c4 {[%clk 0:03:00]}  Nf6 {[%clk 0:02:47]} 2. Nc3 {[%clk 0:02:58]}  c5 {[%clk 0:02:39]} 3. Nf3 {[%clk 0:02:56]}  Nc6 {[%clk 0:02:38]} 4. g3 {[%clk 0:02:53]}  e5 {[%clk 0:02:36]} 5. Bg2 {[%clk 0:02:50]}  Be7 {[%clk 0:02:36]} 6. O-O {[%clk 0:02:50]}  O-O {[%clk 0:02:35]} 7. d3 {[%clk 0:02:47]}  d6 {[%clk 0:02:32]} 8. a3 {[%clk 0:02:47]}  Be6 {[%clk 0:02:23]} 9. Ng5 {[%clk 0:02:43]}  Bd7 {[%clk 0:02:22]} 10. Rb1 {[%clk 0:02:43]}  a5 {[%clk 0:02:15]} 11. Nge4 {[%clk 0:02:37]}  Nxe4 {[%clk 0:01:59]} 12. dxe4 {[%clk 0:02:35]}  Re8 {[%clk 0:01:51]} 13. Nd5 {[%clk 0:02:22]}  Bf8 {[%clk 0:01:51]} 14. b4 {[%clk 0:02:16]}  axb4 {[%clk 0:01:50]} 15. axb4 {[%clk 0:02:17]}  cxb4 {[%clk 0:01:50]} 16. Nxb4 {[%clk 0:02:17]}  Nxb4 {[%clk 0:01:46]} 17. Rxb4 {[%clk 0:02:18]}  d5 {[%clk 0:01:46]} 18. Rxb7 {[%clk 0:02:14]}  Bc6 {[%clk 0:01:46]} 19. Rb2 {[%clk 0:02:09]}  dxe4 {[%clk 0:01:45]} 20. Rd2 {[%clk 0:02:09]}  Qb6 {[%clk 0:01:38]} 21. Bb2 {[%clk 0:01:54]}  Bc5 {[%clk 0:01:36]} 22. e3 {[%clk 0:01:48]}  f6 {[%clk 0:01:30]} 23. Qc2 {[%clk 0:01:46]}  Qb7 {[%clk 0:01:24]} 24. Rfd1 {[%clk 0:01:06]}  Ra2 {[%clk 0:01:20]} 25. Qb1 {[%clk 0:00:59]}  Qb3 {[%clk 0:01:13]} 26. Bxe4 {[%clk 0:00:34]}  Bxe4 {[%clk 0:01:13]} 27. Qxe4 {[%clk 0:00:31]}  Rxb2 {[%clk 0:00:35]} 28. Qd5+ {[%clk 0:00:30]}  Kh8 {[%clk 0:00:35]} 29. Rxb2 {[%clk 0:00:29]}  Qxb2 {[%clk 0:00:30]} 30. Qxc5 {[%clk 0:00:29]}  h6 {[%clk 0:00:28]} 31. Qc6 {[%clk 0:00:24]}  Rb8 {[%clk 0:00:28]} 32. c5 {[%clk 0:00:23]}  Qc2 {[%clk 0:00:26]} 33. Rd7 {[%clk 0:00:19]}  Rb2 {[%clk 0:00:25]} 34. Qa8+ {[%clk 0:00:13]}  Kh7 {[%clk 0:00:25]} 35. Qf3 {[%clk 0:00:12]}  Qxc5 {[%clk 0:00:20]} 36. Qf5+ {[%clk 0:00:12]}  Kg8 {[%clk 0:00:17]} 37. Qe6+ {[%clk 0:00:11]}  Kh8 {[%clk 0:00:15]} 38. Rd8+ {[%clk 0:00:09]}  Kh7 {[%clk 0:00:14]} 39. Qg8+ {[%clk 0:00:06]}  Kg6 {[%clk 0:00:14]} 40. Qe8+ {[%clk 0:00:07]}  Kh7 {[%clk 0:00:12]} 41. Qg8+ {[%clk 0:00:07]}  Kg6 {[%clk 0:00:11]} 42. Qe8+ {[%clk 0:00:07]}  Kh7 {[%clk 0:00:11]} 43. Qg8+ {[%clk 0:00:07]} 1/2-1/2


[Site "https://www.chess.com"]

[Event "Titled Tuesday Blitz November 22 Late 2022"]
[White "Rustemov, Alexander"]
[Black "Gurevich, Dmitry"]
[WhiteFideId "4119002"]
[BlackFideId "2000407"]
[WhiteElo "2870"]
[BlackElo "2506"]
[Result "1-0"]
[Round "03"]
[TimeControl "180+1"]
[Date "2022.11.22"]
[WhiteClock "0:01:56"]
[BlackClock "0:00:05"]

1. Nf3 {[%clk 0:03:00]}  Nf6 {[%clk 0:02:59]} 2. c4 {[%clk 0:03:00]}  e6 {[%clk 0:02:59]} 3. Nc3 {[%clk 0:02:59]}  d5 {[%clk 0:02:59]} 4. d4 {[%clk 0:02:58]}  Be7 {[%clk 0:02:59]} 5. Bg5 {[%clk 0:02:54]}  h6 {[%clk 0:02:58]} 6. Bxf6 {[%clk 0:02:54]}  Bxf6 {[%clk 0:02:58]} 7. e3 {[%clk 0:02:54]}  O-O {[%clk 0:02:50]} 8. Rc1 {[%clk 0:02:55]}  b6 {[%clk 0:02:44]} 9. cxd5 {[%clk 0:02:53]}  exd5 {[%clk 0:02:44]} 10. b4 {[%clk 0:02:53]}  c6 {[%clk 0:02:35]} 11. Bd3 {[%clk 0:02:50]}  Re8 {[%clk 0:02:34]} 12. O-O {[%clk 0:02:49]}  Nd7 {[%clk 0:02:16]} 13. a4 {[%clk 0:02:47]}  Nf8 {[%clk 0:02:13]} 14. b5 {[%clk 0:02:43]}  Bb7 {[%clk 0:01:55]} 15. bxc6 {[%clk 0:02:42]}  Bxc6 {[%clk 0:01:55]} 16. Bb5 {[%clk 0:02:32]}  Bb7 {[%clk 0:01:49]} 17. Bxe8 {[%clk 0:02:31]}  Qxe8 {[%clk 0:01:47]} 18. Nb5 {[%clk 0:02:30]}  Qd8 {[%clk 0:01:42]} 19. Ne5 {[%clk 0:02:25]}  Bxe5 {[%clk 0:01:37]} 20. dxe5 {[%clk 0:02:24]}  Ne6 {[%clk 0:01:36]} 21. Nd6 {[%clk 0:02:17]}  Ba6 {[%clk 0:01:34]} 22. Re1 {[%clk 0:02:17]}  Nc5 {[%clk 0:01:33]} 23. Qxd5 {[%clk 0:02:14]}  Qf8 {[%clk 0:00:58]} 24. Red1 {[%clk 0:02:11]}  Rd8 {[%clk 0:00:43]} 25. a5 {[%clk 0:02:10]}  Bb7 {[%clk 0:00:36]} 26. Qc4 {[%clk 0:02:05]}  Ba8 {[%clk 0:00:17]} 27. axb6 {[%clk 0:02:04]}  axb6 {[%clk 0:00:16]} 28. f3 {[%clk 0:02:00]}  Rd7 {[%clk 0:00:11]} 29. Rb1 {[%clk 0:01:57]}  Qe7 {[%clk 0:00:05]} 30. Rxb6 {[%clk 0:01:56]}  Qxe5 {[%clk 0:00:05]} 31. Qd4 {[%clk 0:01:56]} 1-0


[Site "https://www.chess.com"]

[Event "Titled Tuesday Blitz November 22 Late 2022"]
[White "Sailer, Mike"]
[Black "Omariev, Maksim"]
[WhiteFideId "2012901"]
[BlackFideId "4193423"]
[WhiteElo "2109"]
[BlackElo "2413"]
[Result "1-0"]
[Round "03"]
[TimeControl "180+1"]
[Date "2022.11.23"]
[WhiteClock "0:00:19"]
[BlackClock "0:00:12"]

1. Nf3 {[%clk 0:03:00]}  d5 {[%clk 0:02:59]} 2. c4 {[%clk 0:03:00]}  c6 {[%clk 0:02:59]} 3. g3 {[%clk 0:03:00]}  Nf6 {[%clk 0:02:59]} 4. Bg2 {[%clk 0:03:01]}  Bf5 {[%clk 0:02:57]} 5. O-O {[%clk 0:03:02]}  e6 {[%clk 0:02:57]} 6. d3 {[%clk 0:03:02]}  h6 {[%clk 0:02:58]} 7. Qb3 {[%clk 0:03:02]}  Qb6 {[%clk 0:02:56]} 8. Be3 {[%clk 0:03:03]}  Qxb3 {[%clk 0:02:56]} 9. axb3 {[%clk 0:03:03]}  a6 {[%clk 0:02:56]} 10. Nc3 {[%clk 0:03:00]}  Nbd7 {[%clk 0:02:56]} 11. Na4 {[%clk 0:02:55]}  Be7 {[%clk 0:02:45]} 12. Bf4 {[%clk 0:02:40]}  O-O {[%clk 0:02:44]} 13. Ne5 {[%clk 0:02:39]}  Rfe8 {[%clk 0:02:41]} 14. Nxd7 {[%clk 0:02:39]}  Nxd7 {[%clk 0:02:41]} 15. h4 {[%clk 0:02:36]}  e5 {[%clk 0:02:33]} 16. Bd2 {[%clk 0:02:35]}  Be6 {[%clk 0:02:28]} 17. e4 {[%clk 0:02:28]}  dxe4 {[%clk 0:02:19]} 18. dxe4 {[%clk 0:02:25]}  Nc5 {[%clk 0:02:15]} 19. Nxc5 {[%clk 0:02:23]}  Bxc5 {[%clk 0:02:16]} 20. Bc3 {[%clk 0:02:20]}  f6 {[%clk 0:02:02]} 21. Rad1 {[%clk 0:02:19]}  Rad8 {[%clk 0:02:01]} 22. Bf3 {[%clk 0:02:14]}  b5 {[%clk 0:01:49]} 23. b4 {[%clk 0:02:02]}  Be7 {[%clk 0:01:34]} 24. c5 {[%clk 0:02:02]}  a5 {[%clk 0:01:22]} 25. bxa5 {[%clk 0:01:52]}  Bxc5 {[%clk 0:01:21]} 26. Rxd8 {[%clk 0:01:50]}  Rxd8 {[%clk 0:01:21]} 27. Rd1 {[%clk 0:01:51]}  Rxd1+ {[%clk 0:01:01]} 28. Bxd1 {[%clk 0:01:51]}  b4 {[%clk 0:01:01]} 29. Bd2 {[%clk 0:01:42]}  Kf7 {[%clk 0:01:00]} 30. Ba4 {[%clk 0:01:37]}  Bd7 {[%clk 0:01:00]} 31. Bb3+ {[%clk 0:01:37]}  Ke7 {[%clk 0:01:00]} 32. Bc4 {[%clk 0:01:36]}  Kd6 {[%clk 0:00:59]} 33. Kf1 {[%clk 0:01:36]}  Kc7 {[%clk 0:00:41]} 34. Ke2 {[%clk 0:01:31]}  Kb7 {[%clk 0:00:40]} 35. Be3 {[%clk 0:01:21]}  Bxe3 {[%clk 0:00:21]} 36. Kxe3 {[%clk 0:01:22]}  Kc7 {[%clk 0:00:20]} 37. f4 {[%clk 0:01:16]}  Kd6 {[%clk 0:00:19]} 38. Kd3 {[%clk 0:01:07]}  Kc5 {[%clk 0:00:19]} 39. f5 {[%clk 0:00:54]}  Be8 {[%clk 0:00:15]} 40. g4 {[%clk 0:00:52]}  Bd7 {[%clk 0:00:06]} 41. h5 {[%clk 0:00:45]}  Bc8 {[%clk 0:00:06]} 42. b3 {[%clk 0:00:36]}  Bb7 {[%clk 0:00:06]} 43. Ke3 {[%clk 0:00:34]}  Kd6 {[%clk 0:00:02]} 44. Kd3 {[%clk 0:00:35]}  Kc5 {[%clk 0:00:01]} 45. Ke3 {[%clk 0:00:35]}  Bc8 {[%clk 0:00:02]} 46. Kd3 {[%clk 0:00:35]}  Kd6 {[%clk 0:00:02]} 47. Ke3 {[%clk 0:00:35]}  Kc7 {[%clk 0:00:02]} 48. Kd3 {[%clk 0:00:33]}  Bd7 {[%clk 0:00:02]} 49. Be6 {[%clk 0:00:29]}  Be8 {[%clk 0:00:01]} 50. Kc4 {[%clk 0:00:30]}  Kb7 {[%clk 0:00:01]} 51. Kxb4 {[%clk 0:00:30]}  Ka6 {[%clk 0:00:02]} 52. Bc8+ {[%clk 0:00:29]}  Ka7 {[%clk 0:00:02]} 53. Kc5 {[%clk 0:00:29]}  Bf7 {[%clk 0:00:03]} 54. b4 {[%clk 0:00:29]}  Bb3 {[%clk 0:00:03]} 55. Kxc6 {[%clk 0:00:25]}  Bc2 {[%clk 0:00:03]} 56. b5 {[%clk 0:00:18]}  Bxe4+ {[%clk 0:00:03]} 57. Kc7 {[%clk 0:00:19]}  Bf3 {[%clk 0:00:01]} 58. b6+ {[%clk 0:00:14]}  Ka8 {[%clk 0:00:01]} 59. b7+ {[%clk 0:00:10]}  Bxb7 {[%clk 0:00:01]} 60. Bxb7+ {[%clk 0:00:10]}  Ka7 {[%clk 0:00:02]} 61. a6 {[%clk 0:00:10]}  e4 {[%clk 0:00:02]} 62. Bxe4 {[%clk 0:00:10]}  Kxa6 {[%clk 0:00:02]} 63. Kd7 {[%clk 0:00:11]}  Kb6 {[%clk 0:00:02]} 64. Ke7 {[%clk 0:00:11]}  Kc5 {[%clk 0:00:03]} 65. Kf7 {[%clk 0:00:12]}  Kd4 {[%clk 0:00:04]} 66. Bc2 {[%clk 0:00:12]}  Ke5 {[%clk 0:00:03]} 67. Kxg7 {[%clk 0:00:13]}  Kf4 {[%clk 0:00:04]} 68. Bd1 {[%clk 0:00:13]}  Kg5 {[%clk 0:00:04]} 69. Kf7 {[%clk 0:00:13]}  Kh4 {[%clk 0:00:04]} 70. Kxf6 {[%clk 0:00:13]}  Kg3 {[%clk 0:00:05]} 71. Kg6 {[%clk 0:00:14]}  Kf4 {[%clk 0:00:06]} 72. f6 {[%clk 0:00:15]}  Ke5 {[%clk 0:00:07]} 73. f7 {[%clk 0:00:16]}  Ke6 {[%clk 0:00:07]} 74. f8=Q {[%clk 0:00:16]}  Kd7 {[%clk 0:00:08]} 75. Qf6 {[%clk 0:00:16]}  Ke8 {[%clk 0:00:09]} 76. Kxh6 {[%clk 0:00:17]}  Kd7 {[%clk 0:00:08]} 77. Kg6 {[%clk 0:00:17]}  Ke8 {[%clk 0:00:09]} 78. h6 {[%clk 0:00:17]}  Kd7 {[%clk 0:00:10]} 79. h7 {[%clk 0:00:18]}  Ke8 {[%clk 0:00:11]} 80. h8=Q+ {[%clk 0:00:18]}  Kd7 {[%clk 0:00:12]} 81. Qhd8# {[%clk 0:00:19]} 1-0


[Site "https://www.chess.com"]

[Event "Titled Tuesday Blitz November 22 Late 2022"]
[White "Samarth, J Rao"]
[Black "Bilan, Danila"]
[WhiteFideId "46652370"]
[BlackFideId "24161918"]
[WhiteElo "1564"]
[BlackElo "2173"]
[Result "1-0"]
[Round "03"]
[TimeControl "180+1"]
[Date "2022.11.23"]
[WhiteClock "0:00:08"]
[BlackClock "0:00:06"]

1. c4 {[%clk 0:02:56]}  c6 {[%clk 0:02:58]} 2. e4 {[%clk 0:02:56]}  d5 {[%clk 0:02:59]} 3. exd5 {[%clk 0:02:56]}  cxd5 {[%clk 0:03:00]} 4. cxd5 {[%clk 0:02:57]}  Nf6 {[%clk 0:03:00]} 5. Qa4+ {[%clk 0:02:57]}  Nbd7 {[%clk 0:02:57]} 6. Nc3 {[%clk 0:02:58]}  g6 {[%clk 0:02:56]} 7. Nf3 {[%clk 0:02:58]}  Bg7 {[%clk 0:02:56]} 8. Bc4 {[%clk 0:02:59]}  O-O {[%clk 0:02:56]} 9. d3 {[%clk 0:02:59]}  a6 {[%clk 0:02:50]} 10. Qa3 {[%clk 0:02:58]}  Nb6 {[%clk 0:02:43]} 11. Qb3 {[%clk 0:02:58]}  Bf5 {[%clk 0:02:32]} 12. Be3 {[%clk 0:02:53]}  Nxc4 {[%clk 0:02:20]} 13. dxc4 {[%clk 0:02:54]}  b5 {[%clk 0:02:13]} 14. cxb5 {[%clk 0:02:50]}  axb5 {[%clk 0:02:13]} 15. Nd4 {[%clk 0:02:50]}  Bd3 {[%clk 0:02:05]} 16. Ncxb5 {[%clk 0:02:44]}  Be4 {[%clk 0:01:48]} 17. d6 {[%clk 0:02:29]}  Bxg2 {[%clk 0:01:40]} 18. Rg1 {[%clk 0:02:25]}  Bd5 {[%clk 0:01:33]} 19. Qb4 {[%clk 0:02:22]}  exd6 {[%clk 0:01:20]} 20. Qxd6 {[%clk 0:02:19]}  Qa5+ {[%clk 0:01:15]} 21. b4 {[%clk 0:02:16]}  Qd8 {[%clk 0:00:21]} 22. Qxd8 {[%clk 0:02:10]}  Rfxd8 {[%clk 0:00:22]} 23. a4 {[%clk 0:02:02]}  Ne4 {[%clk 0:00:16]} 24. a5 {[%clk 0:01:56]}  Bc4 {[%clk 0:00:14]} 25. O-O-O {[%clk 0:01:55]}  Rac8 {[%clk 0:00:09]} 26. Kb1 {[%clk 0:01:51]}  Bxd4 {[%clk 0:00:06]} 27. Nxd4 {[%clk 0:01:46]}  Nc3+ {[%clk 0:00:06]} 28. Kb2 {[%clk 0:01:47]}  Nxd1+ {[%clk 0:00:07]} 29. Rxd1 {[%clk 0:01:48]}  f5 {[%clk 0:00:07]} 30. Bg5 {[%clk 0:01:29]}  Rd5 {[%clk 0:00:06]} 31. f4 {[%clk 0:01:19]}  Kf7 {[%clk 0:00:06]} 32. Bh4 {[%clk 0:01:17]}  Rb8 {[%clk 0:00:05]} 33. Kc3 {[%clk 0:01:16]}  Rc8 {[%clk 0:00:06]} 34. Kb2 {[%clk 0:01:11]}  Rb8 {[%clk 0:00:05]} 35. Ka3 {[%clk 0:01:07]}  Rc8 {[%clk 0:00:06]} 36. Bf2 {[%clk 0:01:05]}  Ba6 {[%clk 0:00:05]} 37. Kb3 {[%clk 0:01:04]}  Bc4+ {[%clk 0:00:05]} 38. Ka4 {[%clk 0:00:46]}  h6 {[%clk 0:00:05]} 39. Rg1 {[%clk 0:00:41]}  Kf6 {[%clk 0:00:04]} 40. h4 {[%clk 0:00:38]}  Rcd8 {[%clk 0:00:03]} 41. Rd1 {[%clk 0:00:35]}  g5 {[%clk 0:00:03]} 42. hxg5+ {[%clk 0:00:33]}  hxg5 {[%clk 0:00:04]} 43. fxg5+ {[%clk 0:00:34]}  Kxg5 {[%clk 0:00:05]} 44. Rg1+ {[%clk 0:00:20]}  Kf6 {[%clk 0:00:05]} 45. Bh4+ {[%clk 0:00:20]}  Ke5 {[%clk 0:00:05]} 46. Nc6+ {[%clk 0:00:18]}  Ke4 {[%clk 0:00:05]} 47. Nxd8 {[%clk 0:00:19]}  Bb5+ {[%clk 0:00:05]} 48. Kb3 {[%clk 0:00:18]}  f4 {[%clk 0:00:05]} 49. Ne6 {[%clk 0:00:17]}  f3 {[%clk 0:00:04]} 50. Nc5+ {[%clk 0:00:15]}  Ke3 {[%clk 0:00:04]} 51. Re1+ {[%clk 0:00:14]}  Be2 {[%clk 0:00:04]} 52. Bg5+ {[%clk 0:00:13]}  Kf2 {[%clk 0:00:04]} 53. Bh4+ {[%clk 0:00:13]}  Kg2 {[%clk 0:00:05]} 54. Kc3 {[%clk 0:00:12]}  Rh5 {[%clk 0:00:05]} 55. Rxe2+ {[%clk 0:00:07]}  fxe2 {[%clk 0:00:05]} 56. Be1 {[%clk 0:00:08]}  Kf1 {[%clk 0:00:05]} 57. Nd3 {[%clk 0:00:08]}  Rd5 {[%clk 0:00:06]} 58. Bd2 {[%clk 0:00:08]}  Re5 {[%clk 0:00:04]} 59. Nxe5 {[%clk 0:00:07]}  e1=Q {[%clk 0:00:05]} 60. Bxe1 {[%clk 0:00:07]}  Kxe1 {[%clk 0:00:06]} 61. b5 {[%clk 0:00:08]} 1-0


[Site "https://www.chess.com"]

[Event "Titled Tuesday Blitz November 22 Late 2022"]
[White "Santos Flores, Alberto"]
[Black "Rose, Felix"]
[WhiteFideId "3601234"]
[BlackFideId "5105722"]
[WhiteElo "2235"]
[BlackElo "2039"]
[Result "1-0"]
[Round "03"]
[TimeControl "180+1"]
[Date "2022.11.23"]
[WhiteClock "0:00:52"]
[BlackClock "0:00:58"]

1. d4 {[%clk 0:02:57]}  d5 {[%clk 0:02:59]} 2. Nf3 {[%clk 0:02:56]}  Nf6 {[%clk 0:02:59]} 3. c4 {[%clk 0:02:56]}  e6 {[%clk 0:02:59]} 4. Nc3 {[%clk 0:02:54]}  Be7 {[%clk 0:02:59]} 5. Bf4 {[%clk 0:02:54]}  O-O {[%clk 0:02:59]} 6. e3 {[%clk 0:02:54]}  b6 {[%clk 0:02:59]} 7. cxd5 {[%clk 0:02:52]}  Nxd5 {[%clk 0:03:00]} 8. Nxd5 {[%clk 0:02:52]}  Qxd5 {[%clk 0:03:01]} 9. Bxc7 {[%clk 0:02:48]}  Bb4+ {[%clk 0:02:59]} 10. Nd2 {[%clk 0:02:47]}  Nc6 {[%clk 0:02:52]} 11. a3 {[%clk 0:02:43]}  Bxd2+ {[%clk 0:02:49]} 12. Qxd2 {[%clk 0:02:44]}  Bb7 {[%clk 0:02:49]} 13. Bg3 {[%clk 0:02:34]}  Rac8 {[%clk 0:02:35]} 14. f3 {[%clk 0:02:24]}  Rfd8 {[%clk 0:02:30]} 15. Bf2 {[%clk 0:02:14]}  f5 {[%clk 0:02:11]} 16. Bd3 {[%clk 0:02:03]}  Na5 {[%clk 0:02:04]} 17. Qe2 {[%clk 0:01:54]}  g6 {[%clk 0:01:50]} 18. O-O {[%clk 0:01:53]}  Qd7 {[%clk 0:01:39]} 19. b4 {[%clk 0:01:47]}  Nc6 {[%clk 0:01:32]} 20. Rfd1 {[%clk 0:01:39]}  Ne7 {[%clk 0:01:32]} 21. e4 {[%clk 0:01:32]}  Rc3 {[%clk 0:01:20]} 22. Rdc1 {[%clk 0:01:23]}  Rdc8 {[%clk 0:01:18]} 23. Qd2 {[%clk 0:01:22]}  Rxc1+ {[%clk 0:01:16]} 24. Rxc1 {[%clk 0:01:23]}  Rxc1+ {[%clk 0:01:16]} 25. Qxc1 {[%clk 0:01:24]}  fxe4 {[%clk 0:01:15]} 26. fxe4 {[%clk 0:01:24]}  a5 {[%clk 0:01:11]} 27. bxa5 {[%clk 0:01:20]}  bxa5 {[%clk 0:01:10]} 28. Qc5 {[%clk 0:01:16]}  a4 {[%clk 0:00:59]} 29. Bb5 {[%clk 0:01:01]}  Bc6 {[%clk 0:00:59]} 30. Bxc6 {[%clk 0:01:01]}  Qxc6 {[%clk 0:00:59]} 31. Qxc6 {[%clk 0:00:58]}  Nxc6 {[%clk 0:00:59]} 32. Kf1 {[%clk 0:00:56]}  Na5 {[%clk 0:00:58]} 33. Be1 {[%clk 0:00:52]}  Nc4 {[%clk 0:00:57]} 34. Bb4 {[%clk 0:00:52]}  Nd2+ {[%clk 0:00:58]} 35. Bxd2 {[%clk 0:00:52]} 1-0


[Site "https://www.chess.com"]

[Event "Titled Tuesday Blitz November 22 Late 2022"]
[White "Sarana, Alexey"]
[Black "Cardoso Cardoso, Jose Gabriel"]
[WhiteFideId "24133795"]
[BlackFideId "4430492"]
[WhiteElo "2708"]
[BlackElo "2484"]
[Result "0-1"]
[Round "03"]
[TimeControl "180+1"]
[Date "2022.11.22"]
[WhiteClock "0:00:23"]
[BlackClock "0:00:03"]

1. d4 {[%clk 0:03:00]}  d5 {[%clk 0:02:59]} 2. c4 {[%clk 0:03:00]}  dxc4 {[%clk 0:02:59]} 3. Nf3 {[%clk 0:03:00]}  Nf6 {[%clk 0:02:59]} 4. e3 {[%clk 0:03:00]}  e6 {[%clk 0:03:00]} 5. Bxc4 {[%clk 0:02:59]}  a6 {[%clk 0:03:01]} 6. O-O {[%clk 0:03:00]}  c5 {[%clk 0:03:01]} 7. Nc3 {[%clk 0:03:00]}  b5 {[%clk 0:02:56]} 8. Bb3 {[%clk 0:03:00]}  Nbd7 {[%clk 0:02:51]} 9. e4 {[%clk 0:02:55]}  cxd4 {[%clk 0:02:44]} 10. Nxd4 {[%clk 0:02:44]}  Nc5 {[%clk 0:02:13]} 11. e5 {[%clk 0:02:39]}  Nfd7 {[%clk 0:01:49]} 12. Bf4 {[%clk 0:02:29]}  Bb7 {[%clk 0:01:42]} 13. Bc2 {[%clk 0:02:28]}  Nb6 {[%clk 0:01:24]} 14. b4 {[%clk 0:02:07]}  Ncd7 {[%clk 0:01:18]} 15. a3 {[%clk 0:02:05]}  Be7 {[%clk 0:01:12]} 16. Qg4 {[%clk 0:02:02]}  g6 {[%clk 0:00:46]} 17. Rad1 {[%clk 0:02:00]}  h5 {[%clk 0:00:41]} 18. Qg3 {[%clk 0:01:56]}  g5 {[%clk 0:00:34]} 19. Bc1 {[%clk 0:01:38]}  Qc7 {[%clk 0:00:28]} 20. Rfe1 {[%clk 0:01:32]}  g4 {[%clk 0:00:10]} 21. Be4 {[%clk 0:01:30]}  h4 {[%clk 0:00:07]} 22. Qe3 {[%clk 0:01:25]}  Nc4 {[%clk 0:00:06]} 23. Qe2 {[%clk 0:01:25]}  Rc8 {[%clk 0:00:05]} 24. Bxb7 {[%clk 0:01:21]}  Qxb7 {[%clk 0:00:05]} 25. Qxg4 {[%clk 0:01:16]}  Ncxe5 {[%clk 0:00:05]} 26. Rxe5 {[%clk 0:01:16]}  Nxe5 {[%clk 0:00:04]} 27. Qg7 {[%clk 0:01:16]}  Ng6 {[%clk 0:00:04]} 28. Nxe6 {[%clk 0:01:10]}  h3 {[%clk 0:00:05]} 29. Nd5 {[%clk 0:01:06]}  Qxd5 {[%clk 0:00:03]} 30. Qxh8+ {[%clk 0:00:21]}  Nxh8 {[%clk 0:00:03]} 31. Ng7+ {[%clk 0:00:22]}  Kf8 {[%clk 0:00:03]} 32. Rxd5 {[%clk 0:00:23]}  Rxc1+ {[%clk 0:00:03]} 0-1


[Site "https://www.chess.com"]

[Event "Titled Tuesday Blitz November 22 Late 2022"]
[White "Sokolovsky, Yahli"]
[Black "Yeritsyan, Hayk"]
[WhiteFideId "2820242"]
[BlackFideId "13307320"]
[WhiteElo "2635"]
[BlackElo "2379"]
[Result "1-0"]
[Round "03"]
[TimeControl "180+1"]
[Date "2022.11.23"]
[WhiteClock "0:00:35"]
[BlackClock "0:00:23"]

1. b3 {[%clk 0:03:00]}  d5 {[%clk 0:02:57]} 2. e3 {[%clk 0:03:01]}  Nf6 {[%clk 0:02:57]} 3. Bb2 {[%clk 0:03:01]}  Bf5 {[%clk 0:02:57]} 4. d4 {[%clk 0:03:01]}  e6 {[%clk 0:02:58]} 5. Nf3 {[%clk 0:03:02]}  c5 {[%clk 0:02:55]} 6. Bb5+ {[%clk 0:02:56]}  Nc6 {[%clk 0:02:55]} 7. O-O {[%clk 0:02:51]}  Bg4 {[%clk 0:02:49]} 8. h3 {[%clk 0:02:45]}  Bxf3 {[%clk 0:02:49]} 9. Qxf3 {[%clk 0:02:45]}  cxd4 {[%clk 0:02:48]} 10. exd4 {[%clk 0:02:45]}  Be7 {[%clk 0:02:48]} 11. Nd2 {[%clk 0:02:36]}  O-O {[%clk 0:02:46]} 12. Qe2 {[%clk 0:02:37]}  Rc8 {[%clk 0:02:44]} 13. c3 {[%clk 0:02:37]}  a6 {[%clk 0:02:44]} 14. Bd3 {[%clk 0:02:38]}  b5 {[%clk 0:02:42]} 15. Nf3 {[%clk 0:02:36]}  Bd6 {[%clk 0:02:41]} 16. a4 {[%clk 0:02:30]}  bxa4 {[%clk 0:02:33]} 17. Bxa6 {[%clk 0:02:30]}  Rb8 {[%clk 0:02:33]} 18. b4 {[%clk 0:02:30]}  Qb6 {[%clk 0:02:20]} 19. Rxa4 {[%clk 0:02:28]}  Ra8 {[%clk 0:02:16]} 20. Rfa1 {[%clk 0:02:26]}  Rfb8 {[%clk 0:02:10]} 21. Bd3 {[%clk 0:02:12]}  Rxa4 {[%clk 0:01:59]} 22. Rxa4 {[%clk 0:02:12]}  Ne7 {[%clk 0:01:59]} 23. Ne5 {[%clk 0:02:09]}  Qc7 {[%clk 0:01:56]} 24. f4 {[%clk 0:02:00]}  Qb7 {[%clk 0:01:42]} 25. Qe1 {[%clk 0:01:56]}  Rc8 {[%clk 0:01:40]} 26. Qa1 {[%clk 0:01:50]}  Qc7 {[%clk 0:01:33]} 27. Ra7 {[%clk 0:01:49]}  Qb6 {[%clk 0:01:32]} 28. Qa6 {[%clk 0:01:30]}  Qxa6 {[%clk 0:01:27]} 29. Rxa6 {[%clk 0:01:30]}  Bxe5 {[%clk 0:01:26]} 30. fxe5 {[%clk 0:01:30]}  Ne4 {[%clk 0:01:27]} 31. Ra3 {[%clk 0:01:20]}  g5 {[%clk 0:01:24]} 32. b5 {[%clk 0:01:13]}  Nd2 {[%clk 0:01:18]} 33. Kf2 {[%clk 0:01:09]}  Rb8 {[%clk 0:01:15]} 34. Ke2 {[%clk 0:01:05]}  Nc4 {[%clk 0:01:09]} 35. Rb3 {[%clk 0:01:05]}  Nc8 {[%clk 0:01:02]} 36. Bc1 {[%clk 0:01:00]}  Na7 {[%clk 0:00:56]} 37. b6 {[%clk 0:00:54]}  Rxb6 {[%clk 0:00:51]} 38. Rxb6 {[%clk 0:00:55]}  Nxb6 {[%clk 0:00:51]} 39. Bxg5 {[%clk 0:00:55]}  Nc6 {[%clk 0:00:46]} 40. Bb5 {[%clk 0:00:52]}  Na5 {[%clk 0:00:46]} 41. Bd8 {[%clk 0:00:50]}  Nac4 {[%clk 0:00:45]} 42. Kd3 {[%clk 0:00:47]}  Nb2+ {[%clk 0:00:39]} 43. Kc2 {[%clk 0:00:47]}  N2c4 {[%clk 0:00:39]} 44. Kb3 {[%clk 0:00:46]}  Nd2+ {[%clk 0:00:37]} 45. Kc2 {[%clk 0:00:40]}  Ndc4 {[%clk 0:00:37]} 46. Bxb6 {[%clk 0:00:40]}  Na3+ {[%clk 0:00:34]} 47. Kb3 {[%clk 0:00:39]}  Nxb5 {[%clk 0:00:34]} 48. Kb4 {[%clk 0:00:39]}  Nxd4 {[%clk 0:00:24]} 49. cxd4 {[%clk 0:00:33]}  Kg7 {[%clk 0:00:22]} 50. Bd8 {[%clk 0:00:34]}  Kg6 {[%clk 0:00:23]} 51. g4 {[%clk 0:00:35]}  h5 {[%clk 0:00:22]} 52. Kc5 {[%clk 0:00:35]}  hxg4 {[%clk 0:00:23]} 53. hxg4 {[%clk 0:00:35]}  f5 {[%clk 0:00:23]} 54. exf6 {[%clk 0:00:35]} 1-0


[Site "https://www.chess.com"]